[Event "Titled Tuesday Blitz November 15 Early 2022"]
[White "Manukyan, Sargis A."]
[Black "Yeremyan, Alen"]
[WhiteFideId "13303970"]
[BlackFideId "13308998"]
[WhiteElo "2187"]
[BlackElo "2159"]
[Result "1-0"]
[Round "06"]
[TimeControl "180+1"]
[Date "2022.11.16"]
[WhiteClock "0:00:07"]
[BlackClock "0:00:39"]

1. Nf3 {[%clk 0:03:00]}  Nf6 {[%clk 0:02:58]} 2. d4 {[%clk 0:03:00]}  g6 {[%clk 0:02:57]} 3. g3 {[%clk 0:02:58]}  Bg7 {[%clk 0:02:57]} 4. Bg2 {[%clk 0:02:59]}  O-O {[%clk 0:02:57]} 5. O-O {[%clk 0:03:00]}  d5 {[%clk 0:02:58]} 6. c4 {[%clk 0:02:59]}  dxc4 {[%clk 0:02:59]} 7. Na3 {[%clk 0:02:54]}  a5 {[%clk 0:02:58]} 8. Nxc4 {[%clk 0:02:53]}  a4 {[%clk 0:02:56]} 9. Bf4 {[%clk 0:02:45]}  Be6 {[%clk 0:02:51]} 10. Nfe5 {[%clk 0:02:26]}  c6 {[%clk 0:02:44]} 11. e4 {[%clk 0:02:18]}  Na6 {[%clk 0:02:23]} 12. Rc1 {[%clk 0:01:41]}  Nd7 {[%clk 0:02:01]} 13. d5 {[%clk 0:01:32]}  cxd5 {[%clk 0:01:46]} 14. exd5 {[%clk 0:01:30]}  Bf5 {[%clk 0:01:46]} 15. d6 {[%clk 0:00:57]}  Nxe5 {[%clk 0:01:37]} 16. Bxe5 {[%clk 0:00:51]}  Bxe5 {[%clk 0:01:36]} 17. Nxe5 {[%clk 0:00:48]}  exd6 {[%clk 0:01:36]} 18. Nc4 {[%clk 0:00:43]}  d5 {[%clk 0:01:25]} 19. Qxd5 {[%clk 0:00:34]}  Qxd5 {[%clk 0:01:21]} 20. Bxd5 {[%clk 0:00:35]}  Nb4 {[%clk 0:01:21]} 21. Bxb7 {[%clk 0:00:32]}  Rab8 {[%clk 0:01:22]} 22. Nd6 {[%clk 0:00:28]}  Bd3 {[%clk 0:01:15]} 23. Rfd1 {[%clk 0:00:16]}  Rfd8 {[%clk 0:01:15]} 24. Rc8 {[%clk 0:00:12]}  Rbxc8 {[%clk 0:01:07]} 25. Nxc8 {[%clk 0:00:12]}  Rd7 {[%clk 0:01:07]} 26. Be4 {[%clk 0:00:11]}  Rc7 {[%clk 0:00:54]} 27. Bxd3 {[%clk 0:00:08]}  Rxc8 {[%clk 0:00:54]} 28. a3 {[%clk 0:00:07]}  Nxd3 {[%clk 0:00:42]} 29. Rxd3 {[%clk 0:00:08]}  Rb8 {[%clk 0:00:40]} 30. Rd4 {[%clk 0:00:08]}  Rxb2 {[%clk 0:00:41]} 31. Rxa4 {[%clk 0:00:08]}  h5 {[%clk 0:00:42]} 32. Kg2 {[%clk 0:00:09]}  Kg7 {[%clk 0:00:42]} 33. h3 {[%clk 0:00:09]}  Ra2 {[%clk 0:00:43]} 34. Kg1 {[%clk 0:00:10]}  Ra1+ {[%clk 0:00:42]} 35. Kg2 {[%clk 0:00:10]}  Ra2 {[%clk 0:00:43]} 36. h4 {[%clk 0:00:10]}  Ra1 {[%clk 0:00:43]} 37. Ra7 {[%clk 0:00:11]}  Ra2 {[%clk 0:00:41]} 38. a4 {[%clk 0:00:08]}  Ra1 {[%clk 0:00:42]} 39. Kf3 {[%clk 0:00:08]}  Rxa4 {[%clk 0:00:39]} 40. Rxa4 {[%clk 0:00:07]} 1-0


[Site "https://www.chess.com"]

[Event "Titled Tuesday Blitz November 15 Early 2022"]
[White "Matveeva, Olga"]
[Black "Cramling Bellon, Anna"]
[WhiteFideId "24107018"]
[BlackFideId "32009232"]
[WhiteElo "2055"]
[BlackElo "1972"]
[Result "0-1"]
[Round "06"]
[TimeControl "180+1"]
[Date "2022.11.16"]
[WhiteClock "0:00:01"]
[BlackClock "0:00:06"]

1. d4 {[%clk 0:03:00]}  Nf6 {[%clk 0:03:00]} 2. c4 {[%clk 0:03:01]}  e6 {[%clk 0:03:00]} 3. g3 {[%clk 0:03:00]}  d5 {[%clk 0:03:00]} 4. Nf3 {[%clk 0:03:00]}  Bb4+ {[%clk 0:02:59]} 5. Bd2 {[%clk 0:02:59]}  Bd6 {[%clk 0:02:58]} 6. Nc3 {[%clk 0:02:55]}  c6 {[%clk 0:02:57]} 7. Bg5 {[%clk 0:02:54]}  Nbd7 {[%clk 0:02:55]} 8. e4 {[%clk 0:02:52]}  dxe4 {[%clk 0:02:54]} 9. Nxe4 {[%clk 0:02:53]}  Bb4+ {[%clk 0:02:52]} 10. Nc3 {[%clk 0:02:52]}  Qa5 {[%clk 0:02:48]} 11. Qc2 {[%clk 0:02:44]}  Ne4 {[%clk 0:02:27]} 12. Qxe4 {[%clk 0:02:34]}  Bxc3+ {[%clk 0:02:23]} 13. Bd2 {[%clk 0:02:34]}  Bxd2+ {[%clk 0:02:18]} 14. Nxd2 {[%clk 0:02:35]}  Nf6 {[%clk 0:02:09]} 15. Qe5 {[%clk 0:02:22]}  Qb4 {[%clk 0:01:49]} 16. O-O-O {[%clk 0:02:15]}  O-O {[%clk 0:01:41]} 17. Bd3 {[%clk 0:02:10]}  b5 {[%clk 0:00:57]} 18. c5 {[%clk 0:01:42]}  Rd8 {[%clk 0:00:39]} 19. Nf3 {[%clk 0:01:41]}  Rd5 {[%clk 0:00:12]} 20. Qf4 {[%clk 0:01:36]}  Bd7 {[%clk 0:00:07]} 21. g4 {[%clk 0:01:35]}  a5 {[%clk 0:00:02]} 22. h4 {[%clk 0:01:32]}  a4 {[%clk 0:00:02]} 23. a3 {[%clk 0:01:08]}  Rxc5+ {[%clk 0:00:02]} 24. Kb1 {[%clk 0:01:02]}  Qb3 {[%clk 0:00:02]} 25. dxc5 {[%clk 0:01:00]}  Nd5 {[%clk 0:00:03]} 26. Qe4 {[%clk 0:00:56]}  Nc3+ {[%clk 0:00:03]} 27. Ka1 {[%clk 0:00:56]}  Nxe4 {[%clk 0:00:03]} 28. Bxe4 {[%clk 0:00:56]}  b4 {[%clk 0:00:04]} 29. Rd3 {[%clk 0:00:52]}  Qc2 {[%clk 0:00:03]} 30. Ng5 {[%clk 0:00:46]}  bxa3 {[%clk 0:00:03]} 31. bxa3 {[%clk 0:00:41]}  Qxf2 {[%clk 0:00:03]} 32. Bxh7+ {[%clk 0:00:39]}  Kh8 {[%clk 0:00:03]} 33. Be4 {[%clk 0:00:35]}  Rb8 {[%clk 0:00:03]} 34. Rb1 {[%clk 0:00:28]}  Qf6+ {[%clk 0:00:03]} 35. Ka2 {[%clk 0:00:27]}  Rxb1 {[%clk 0:00:02]} 36. Kxb1 {[%clk 0:00:27]}  g6 {[%clk 0:00:02]} 37. Rxd7 {[%clk 0:00:26]}  Qf1+ {[%clk 0:00:02]} 38. Kb2 {[%clk 0:00:25]}  Qb5+ {[%clk 0:00:02]} 39. Ka1 {[%clk 0:00:18]}  Qxc5 {[%clk 0:00:02]} 40. Nxf7+ {[%clk 0:00:17]}  Kg8 {[%clk 0:00:02]} 41. Ng5 {[%clk 0:00:14]}  Qc1+ {[%clk 0:00:02]} 42. Ka2 {[%clk 0:00:13]}  Qc4+ {[%clk 0:00:03]} 43. Ka1 {[%clk 0:00:13]}  Qc3+ {[%clk 0:00:03]} 44. Ka2 {[%clk 0:00:13]}  Qb3+ {[%clk 0:00:04]} 45. Ka1 {[%clk 0:00:13]}  Qxa3+ {[%clk 0:00:04]} 46. Kb1 {[%clk 0:00:14]}  Qb4+ {[%clk 0:00:04]} 47. Ka1 {[%clk 0:00:14]}  a3 {[%clk 0:00:04]} 48. Rd8+ {[%clk 0:00:12]}  Kg7 {[%clk 0:00:04]} 49. Rd7+ {[%clk 0:00:12]}  Kf6 {[%clk 0:00:05]} 50. Rf7+ {[%clk 0:00:12]}  Ke5 {[%clk 0:00:05]} 51. Nf3+ {[%clk 0:00:10]}  Kxe4 {[%clk 0:00:05]} 52. Ng5+ {[%clk 0:00:10]}  Ke5 {[%clk 0:00:05]} 53. Nf3+ {[%clk 0:00:10]}  Ke4 {[%clk 0:00:05]} 54. Ng5+ {[%clk 0:00:10]}  Ke3 {[%clk 0:00:06]} 55. Rf3+ {[%clk 0:00:09]}  Ke2 {[%clk 0:00:06]} 56. Re3+ {[%clk 0:00:01]}  Kxe3 {[%clk 0:00:06]} 0-1


[Site "https://www.chess.com"]

[Event "Titled Tuesday Blitz November 15 Early 2022"]
[White "Mejia, Cherry Ann"]
[Black "Hirneise, Jens"]
[WhiteFideId "5206880"]
[BlackFideId "24614734"]
[WhiteElo "2007"]
[BlackElo "2344"]
[Result "1-0"]
[Round "06"]
[TimeControl "180+1"]
[Date "2022.11.16"]
[WhiteClock "0:01:59"]
[BlackClock "0:01:30"]

1. e4 {[%clk 0:03:00]}  d5 {[%clk 0:02:57]} 2. exd5 {[%clk 0:03:01]}  Nf6 {[%clk 0:02:58]} 3. Bb5+ {[%clk 0:03:00]}  Nbd7 {[%clk 0:02:54]} 4. Be2 {[%clk 0:03:01]}  Nxd5 {[%clk 0:02:54]} 5. d4 {[%clk 0:03:01]}  N7f6 {[%clk 0:02:52]} 6. Nf3 {[%clk 0:03:02]}  Bg4 {[%clk 0:02:51]} 7. O-O {[%clk 0:03:00]}  e6 {[%clk 0:02:51]} 8. c4 {[%clk 0:03:00]}  Nb6 {[%clk 0:02:51]} 9. b3 {[%clk 0:03:01]}  Be7 {[%clk 0:02:50]} 10. Nc3 {[%clk 0:03:00]}  O-O {[%clk 0:02:50]} 11. h3 {[%clk 0:03:01]}  Bh5 {[%clk 0:02:43]} 12. Be3 {[%clk 0:03:01]}  c6 {[%clk 0:02:37]} 13. Ne5 {[%clk 0:03:00]}  Bg6 {[%clk 0:02:36]} 14. Nxg6 {[%clk 0:02:58]}  hxg6 {[%clk 0:02:36]} 15. Bf3 {[%clk 0:02:53]}  Qd7 {[%clk 0:02:33]} 16. Qc2 {[%clk 0:02:53]}  Rfd8 {[%clk 0:02:31]} 17. Rad1 {[%clk 0:02:53]}  Nh7 {[%clk 0:02:22]} 18. d5 {[%clk 0:02:46]}  cxd5 {[%clk 0:02:22]} 19. cxd5 {[%clk 0:02:46]}  Nxd5 {[%clk 0:02:20]} 20. Nxd5 {[%clk 0:02:46]}  exd5 {[%clk 0:02:20]} 21. Rxd5 {[%clk 0:02:46]}  Qe8 {[%clk 0:02:13]} 22. Rxd8 {[%clk 0:02:40]}  Rxd8 {[%clk 0:02:12]} 23. Bxb7 {[%clk 0:02:38]}  Qb5 {[%clk 0:02:05]} 24. Bf3 {[%clk 0:02:33]}  Ng5 {[%clk 0:02:03]} 25. Bxg5 {[%clk 0:02:32]}  Bxg5 {[%clk 0:02:04]} 26. Rd1 {[%clk 0:02:28]}  Rxd1+ {[%clk 0:02:01]} 27. Qxd1 {[%clk 0:02:29]}  a5 {[%clk 0:01:52]} 28. Qe2 {[%clk 0:02:26]}  Qxe2 {[%clk 0:01:48]} 29. Bxe2 {[%clk 0:02:26]}  Kf8 {[%clk 0:01:48]} 30. g3 {[%clk 0:02:22]}  Bc1 {[%clk 0:01:46]} 31. f4 {[%clk 0:02:21]}  Ke7 {[%clk 0:01:44]} 32. Kf2 {[%clk 0:02:22]}  f6 {[%clk 0:01:37]} 33. Bd3 {[%clk 0:02:17]}  g5 {[%clk 0:01:35]} 34. fxg5 {[%clk 0:02:16]}  Bxg5 {[%clk 0:01:35]} 35. Kf3 {[%clk 0:02:15]}  Kd6 {[%clk 0:01:33]} 36. Ke4 {[%clk 0:02:09]}  Bd2 {[%clk 0:01:33]} 37. Kf5 {[%clk 0:02:04]}  Kd7 {[%clk 0:01:29]} 38. Kg6 {[%clk 0:02:00]}  Ke7 {[%clk 0:01:30]} 39. Kxg7 {[%clk 0:01:59]} 1-0


[Site "https://www.chess.com"]

[Event "Titled Tuesday Blitz November 15 Early 2022"]
[White "Melian, Juan Sebastian"]
[Black "Zacurdajev, Dmitry"]
[WhiteFideId "3706575"]
[BlackFideId "4196309"]
[WhiteElo "2044"]
[BlackElo "2179"]
[Result "1-0"]
[Round "06"]
[TimeControl "180+1"]
[Date "2022.11.16"]
[WhiteClock "0:00:04"]
[BlackClock "0:00:02"]

1. d4 {[%clk 0:02:57]}  d5 {[%clk 0:02:59]} 2. c4 {[%clk 0:02:58]}  e6 {[%clk 0:03:00]} 3. Nc3 {[%clk 0:02:58]}  Nf6 {[%clk 0:03:00]} 4. cxd5 {[%clk 0:02:54]}  exd5 {[%clk 0:02:59]} 5. Bg5 {[%clk 0:02:54]}  Be7 {[%clk 0:02:59]} 6. e3 {[%clk 0:02:52]}  Nbd7 {[%clk 0:02:56]} 7. Bd3 {[%clk 0:02:52]}  c6 {[%clk 0:02:52]} 8. Nge2 {[%clk 0:02:52]}  Nh5 {[%clk 0:02:48]} 9. Bxe7 {[%clk 0:02:50]}  Qxe7 {[%clk 0:02:49]} 10. O-O {[%clk 0:02:51]}  O-O {[%clk 0:02:45]} 11. Qc2 {[%clk 0:02:28]}  g6 {[%clk 0:02:44]} 12. Rae1 {[%clk 0:02:26]}  Nb6 {[%clk 0:02:38]} 13. Ng3 {[%clk 0:02:03]}  Nxg3 {[%clk 0:02:35]} 14. hxg3 {[%clk 0:02:04]}  Be6 {[%clk 0:02:21]} 15. f3 {[%clk 0:02:01]}  Qg5 {[%clk 0:02:16]} 16. Qf2 {[%clk 0:02:01]}  Nc4 {[%clk 0:01:41]} 17. Bxc4 {[%clk 0:01:58]}  dxc4 {[%clk 0:01:42]} 18. e4 {[%clk 0:01:51]}  Rad8 {[%clk 0:01:33]} 19. f4 {[%clk 0:01:24]}  Qh5 {[%clk 0:01:20]} 20. f5 {[%clk 0:01:12]}  Bc8 {[%clk 0:01:10]} 21. a4 {[%clk 0:00:44]}  b6 {[%clk 0:00:41]} 22. d5 {[%clk 0:00:35]}  cxd5 {[%clk 0:00:31]} 23. Nxd5 {[%clk 0:00:33]}  Rxd5 {[%clk 0:00:31]} 24. exd5 {[%clk 0:00:33]}  Bxf5 {[%clk 0:00:31]} 25. Re5 {[%clk 0:00:31]}  Rd8 {[%clk 0:00:25]} 26. Rfe1 {[%clk 0:00:19]}  Qg4 {[%clk 0:00:16]} 27. Qf4 {[%clk 0:00:14]}  Kg7 {[%clk 0:00:09]} 28. Qxg4 {[%clk 0:00:09]}  Bxg4 {[%clk 0:00:10]} 29. R1e4 {[%clk 0:00:10]}  Bf5 {[%clk 0:00:08]} 30. Rxc4 {[%clk 0:00:10]}  Kf6 {[%clk 0:00:09]} 31. Re3 {[%clk 0:00:07]}  Rxd5 {[%clk 0:00:09]} 32. Rf3 {[%clk 0:00:07]}  Rd1+ {[%clk 0:00:07]} 33. Kh2 {[%clk 0:00:07]}  Kg5 {[%clk 0:00:08]} 34. Rff4 {[%clk 0:00:07]}  Rd2 {[%clk 0:00:08]} 35. g4 {[%clk 0:00:07]}  Be6 {[%clk 0:00:08]} 36. Rb4 {[%clk 0:00:07]}  a5 {[%clk 0:00:06]} 37. Rbd4 {[%clk 0:00:06]}  Rxd4 {[%clk 0:00:03]} 38. Rxd4 {[%clk 0:00:07]}  Bxg4 {[%clk 0:00:04]} 39. Kg3 {[%clk 0:00:07]}  Be6 {[%clk 0:00:02]} 40. Rd6 {[%clk 0:00:07]}  Bb3 {[%clk 0:00:01]} 41. Rxb6 {[%clk 0:00:07]}  Bxa4 {[%clk 0:00:02]} 42. Rb7 {[%clk 0:00:04]} 1-0


[Site "https://www.chess.com"]

[Event "Titled Tuesday Blitz November 15 Early 2022"]
[White "Mihailidis, Anastasios"]
[Black "Bilan, Danila"]
[WhiteFideId "4205588"]
[BlackFideId "24161918"]
[WhiteElo "2312"]
[BlackElo "2173"]
[Result "1-0"]
[Round "06"]
[TimeControl "180+1"]
[Date "2022.11.16"]
[WhiteClock "0:00:52"]
[BlackClock "0:00:02"]

1. e4 {[%clk 0:03:00]}  c6 {[%clk 0:03:00]} 2. d4 {[%clk 0:03:00]}  d5 {[%clk 0:03:00]} 3. exd5 {[%clk 0:03:01]}  cxd5 {[%clk 0:03:01]} 4. Bd3 {[%clk 0:03:02]}  Nc6 {[%clk 0:03:01]} 5. c3 {[%clk 0:03:02]}  Qc7 {[%clk 0:03:01]} 6. Ne2 {[%clk 0:03:02]}  Bg4 {[%clk 0:03:00]} 7. f3 {[%clk 0:02:59]}  Bd7 {[%clk 0:03:00]} 8. O-O {[%clk 0:02:59]}  Nf6 {[%clk 0:02:53]} 9. Re1 {[%clk 0:02:57]}  e5 {[%clk 0:02:35]} 10. dxe5 {[%clk 0:02:56]}  Nxe5 {[%clk 0:02:36]} 11. Nd4 {[%clk 0:02:55]}  O-O-O {[%clk 0:02:31]} 12. Bf4 {[%clk 0:02:53]}  Bd6 {[%clk 0:02:30]} 13. Bg3 {[%clk 0:02:38]}  Rhe8 {[%clk 0:02:06]} 14. Bf5 {[%clk 0:02:24]}  Bxf5 {[%clk 0:01:11]} 15. Nxf5 {[%clk 0:02:25]}  Nh5 {[%clk 0:00:27]} 16. Nxd6+ {[%clk 0:02:24]}  Qxd6 {[%clk 0:00:25]} 17. Bf2 {[%clk 0:02:16]}  Nf4 {[%clk 0:00:19]} 18. Qd4 {[%clk 0:02:08]}  Nh3+ {[%clk 0:00:15]} 19. Kf1 {[%clk 0:01:53]}  Qa6+ {[%clk 0:00:12]} 20. c4 {[%clk 0:01:43]}  Nxf2 {[%clk 0:00:10]} 21. Kxf2 {[%clk 0:01:40]}  dxc4 {[%clk 0:00:10]} 22. Qc5+ {[%clk 0:01:37]}  Nc6 {[%clk 0:00:07]} 23. Nc3 {[%clk 0:01:30]}  Qb6 {[%clk 0:00:05]} 24. Qxb6 {[%clk 0:01:27]}  axb6 {[%clk 0:00:06]} 25. Rad1 {[%clk 0:01:22]}  Rxe1 {[%clk 0:00:06]} 26. Rxe1 {[%clk 0:01:20]}  Rd2+ {[%clk 0:00:06]} 27. Re2 {[%clk 0:01:21]}  Rxe2+ {[%clk 0:00:05]} 28. Kxe2 {[%clk 0:01:22]}  Kd7 {[%clk 0:00:03]} 29. Nd5 {[%clk 0:01:20]}  b5 {[%clk 0:00:03]} 30. Ke3 {[%clk 0:01:17]}  Kd6 {[%clk 0:00:03]} 31. Nb6 {[%clk 0:01:12]}  Kc7 {[%clk 0:00:03]} 32. Nd5+ {[%clk 0:01:12]}  Kd6 {[%clk 0:00:04]} 33. Nf4 {[%clk 0:01:12]}  f5 {[%clk 0:00:04]} 34. Nh5 {[%clk 0:01:11]}  g6 {[%clk 0:00:04]} 35. Nf6 {[%clk 0:01:11]}  h5 {[%clk 0:00:04]} 36. Nh7 {[%clk 0:01:09]}  Ke5 {[%clk 0:00:03]} 37. f4+ {[%clk 0:01:08]}  Ke6 {[%clk 0:00:02]} 38. Nf8+ {[%clk 0:01:08]}  Kf6 {[%clk 0:00:02]} 39. Nd7+ {[%clk 0:01:08]}  Ke7 {[%clk 0:00:03]} 40. Nc5 {[%clk 0:01:08]}  b6 {[%clk 0:00:02]} 41. Na6 {[%clk 0:01:00]}  Kd7 {[%clk 0:00:03]} 42. a3 {[%clk 0:00:56]}  Kd6 {[%clk 0:00:03]} 43. h3 {[%clk 0:00:53]}  Kd5 {[%clk 0:00:03]} 44. Nc7+ {[%clk 0:00:52]}  Kc5 {[%clk 0:00:02]} 45. Ne6+ {[%clk 0:00:53]}  Kd6 {[%clk 0:00:02]} 46. Nf8 {[%clk 0:00:52]} 1-0


[Site "https://www.chess.com"]

[Event "Titled Tuesday Blitz November 15 Early 2022"]
[White "Mika, Tomasz"]
[Black "Odegov, Artem"]
[WhiteFideId "1132970"]
[BlackFideId "34183644"]
[WhiteElo "2126"]
[BlackElo "2298"]
[Result "1-0"]
[Round "06"]
[TimeControl "180+1"]
[Date "2022.11.16"]
[WhiteClock "0:00:08"]
[BlackClock "0:00:05"]

1. Nf3 {[%clk 0:03:00]}  d5 {[%clk 0:02:58]} 2. c4 {[%clk 0:03:00]}  e6 {[%clk 0:02:57]} 3. b3 {[%clk 0:02:57]}  Nf6 {[%clk 0:02:54]} 4. g3 {[%clk 0:02:57]}  c5 {[%clk 0:02:54]} 5. cxd5 {[%clk 0:02:49]}  exd5 {[%clk 0:02:55]} 6. d4 {[%clk 0:02:49]}  Nc6 {[%clk 0:02:55]} 7. Bg2 {[%clk 0:02:49]}  Be7 {[%clk 0:02:55]} 8. O-O {[%clk 0:02:49]}  O-O {[%clk 0:02:55]} 9. Bb2 {[%clk 0:02:49]}  Bf5 {[%clk 0:02:51]} 10. Nc3 {[%clk 0:02:46]}  Rc8 {[%clk 0:02:48]} 11. Rc1 {[%clk 0:02:41]}  h6 {[%clk 0:02:40]} 12. dxc5 {[%clk 0:02:38]}  Bxc5 {[%clk 0:02:18]} 13. Nxd5 {[%clk 0:02:36]}  Bxf2+ {[%clk 0:02:05]} 14. Rxf2 {[%clk 0:02:37]}  Nxd5 {[%clk 0:02:05]} 15. Nh4 {[%clk 0:02:28]}  Be6 {[%clk 0:02:05]} 16. e4 {[%clk 0:02:25]}  Ne3 {[%clk 0:01:59]} 17. Qh5 {[%clk 0:02:15]}  Bg4 {[%clk 0:01:13]} 18. Qc5 {[%clk 0:01:45]}  Nd4 {[%clk 0:01:11]} 19. Qxa7 {[%clk 0:01:22]}  Rxc1+ {[%clk 0:00:50]} 20. Bxc1 {[%clk 0:01:23]}  Nd1 {[%clk 0:00:51]} 21. Rd2 {[%clk 0:01:08]}  Ne2+ {[%clk 0:00:49]} 22. Kf1 {[%clk 0:00:59]}  Qf6+ {[%clk 0:00:40]} 23. Nf5 {[%clk 0:00:58]}  Nxc1 {[%clk 0:00:29]} 24. Qd4 {[%clk 0:00:44]}  Bxf5 {[%clk 0:00:16]} 25. Qxf6 {[%clk 0:00:40]}  gxf6 {[%clk 0:00:17]} 26. Rxd1 {[%clk 0:00:38]}  Nxa2 {[%clk 0:00:07]} 27. exf5 {[%clk 0:00:37]}  b5 {[%clk 0:00:07]} 28. Rd7 {[%clk 0:00:28]}  Nc3 {[%clk 0:00:06]} 29. Rc7 {[%clk 0:00:24]}  b4 {[%clk 0:00:06]} 30. Rb7 {[%clk 0:00:24]}  Rd8 {[%clk 0:00:02]} 31. Bf3 {[%clk 0:00:18]}  Rd1+ {[%clk 0:00:02]} 32. Bxd1 {[%clk 0:00:18]}  Nxd1 {[%clk 0:00:03]} 33. Rxb4 {[%clk 0:00:16]}  Ne3+ {[%clk 0:00:04]} 34. Kf2 {[%clk 0:00:14]}  Nxf5 {[%clk 0:00:04]} 35. Rb8+ {[%clk 0:00:13]}  Kg7 {[%clk 0:00:05]} 36. b4 {[%clk 0:00:14]}  Nd6 {[%clk 0:00:05]} 37. b5 {[%clk 0:00:14]}  f5 {[%clk 0:00:05]} 38. b6 {[%clk 0:00:14]}  Kf6 {[%clk 0:00:05]} 39. Rd8 {[%clk 0:00:08]}  Nb7 {[%clk 0:00:04]} 40. Rd7 {[%clk 0:00:08]}  Nc5 {[%clk 0:00:05]} 41. Rc7 {[%clk 0:00:07]}  Na6 {[%clk 0:00:01]} 42. b7 {[%clk 0:00:06]}  Nxc7 {[%clk 0:00:01]} 43. b8=Q {[%clk 0:00:06]}  Ne6 {[%clk 0:00:02]} 44. Qh8+ {[%clk 0:00:06]}  Kg6 {[%clk 0:00:02]} 45. Kg2 {[%clk 0:00:06]}  Ng5 {[%clk 0:00:02]} 46. Qa1 {[%clk 0:00:07]}  Nh7 {[%clk 0:00:02]} 47. Qb1 {[%clk 0:00:07]}  Nf6 {[%clk 0:00:03]} 48. h3 {[%clk 0:00:07]}  h5 {[%clk 0:00:04]} 49. Kh2 {[%clk 0:00:07]}  Ne4 {[%clk 0:00:05]} 50. Qc1 {[%clk 0:00:07]}  Ng5 {[%clk 0:00:05]} 51. Kg2 {[%clk 0:00:07]}  Ne6 {[%clk 0:00:04]} 52. Qc8 {[%clk 0:00:08]}  Ng7 {[%clk 0:00:04]} 53. Qa8 {[%clk 0:00:09]}  f6 {[%clk 0:00:04]} 54. Qa6 {[%clk 0:00:09]}  Ne6 {[%clk 0:00:05]} 55. Qxe6 {[%clk 0:00:08]} 1-0


[Site "https://www.chess.com"]

[Event "Titled Tuesday Blitz November 15 Early 2022"]
[White "Mrudul Dehankar"]
[Black "Seifert, Henryk"]
[WhiteFideId "25096990"]
[BlackFideId "1100963"]
[WhiteElo "2068"]
[BlackElo "2120"]
[Result "1-0"]
[Round "06"]
[TimeControl "180+1"]
[Date "2022.11.16"]
[WhiteClock "0:00:03"]
[BlackClock "0:00:01"]

1. e4 {[%clk 0:01:55]}  e6 {[%clk 0:02:21]} 2. Nf3 {[%clk 0:01:53]}  d5 {[%clk 0:02:21]} 3. Nc3 {[%clk 0:01:52]}  Nf6 {[%clk 0:02:20]} 4. e5 {[%clk 0:01:50]}  Nfd7 {[%clk 0:02:19]} 5. d4 {[%clk 0:01:49]}  c5 {[%clk 0:02:20]} 6. dxc5 {[%clk 0:01:48]}  Nc6 {[%clk 0:02:20]} 7. Bf4 {[%clk 0:01:49]}  Bxc5 {[%clk 0:02:20]} 8. Bd3 {[%clk 0:01:48]}  f6 {[%clk 0:02:20]} 9. exf6 {[%clk 0:01:45]}  Nxf6 {[%clk 0:02:21]} 10. Qd2 {[%clk 0:01:41]}  O-O {[%clk 0:02:19]} 11. O-O-O {[%clk 0:01:34]}  Nh5 {[%clk 0:01:53]} 12. Bg5 {[%clk 0:01:17]}  Qd6 {[%clk 0:01:47]} 13. Kb1 {[%clk 0:01:01]}  Bd7 {[%clk 0:01:35]} 14. Rhe1 {[%clk 0:00:52]}  Rae8 {[%clk 0:01:33]} 15. Nb5 {[%clk 0:00:44]}  Qb8 {[%clk 0:01:28]} 16. Bh4 {[%clk 0:00:31]}  Nf4 {[%clk 0:01:07]} 17. Bg3 {[%clk 0:00:21]}  a6 {[%clk 0:00:51]} 18. Nc3 {[%clk 0:00:18]}  Bd6 {[%clk 0:00:51]} 19. Ng5 {[%clk 0:00:15]}  g6 {[%clk 0:00:40]} 20. Ne2 {[%clk 0:00:10]}  e5 {[%clk 0:00:25]} 21. Bxf4 {[%clk 0:00:07]}  exf4 {[%clk 0:00:24]} 22. Nc3 {[%clk 0:00:08]}  Ne7 {[%clk 0:00:14]} 23. Ne6 {[%clk 0:00:04]}  Bxe6 {[%clk 0:00:13]} 24. Rxe6 {[%clk 0:00:05]}  Bc7 {[%clk 0:00:10]} 25. Rde1 {[%clk 0:00:05]}  Nc6 {[%clk 0:00:04]} 26. Nxd5 {[%clk 0:00:05]}  Rxe6 {[%clk 0:00:02]} 27. Rxe6 {[%clk 0:00:06]}  Be5 {[%clk 0:00:01]} 28. f3 {[%clk 0:00:02]}  Bg7 {[%clk 0:00:01]} 29. Ne7+ {[%clk 0:00:02]}  Nxe7 {[%clk 0:00:01]} 30. Rxe7 {[%clk 0:00:03]}  Rd8 {[%clk 0:00:01]} 31. Qe2 {[%clk 0:00:03]} 1-0


[Site "https://www.chess.com"]

[Event "Titled Tuesday Blitz November 15 Early 2022"]
[White "Narayanan, Srinath"]
[Black "Seemann, Jakub"]
[WhiteFideId "5018420"]
[BlackFideId "21874697"]
[WhiteElo "2459"]
[BlackElo "2275"]
[Result "0-1"]
[Round "06"]
[TimeControl "180+1"]
[Date "2022.11.16"]
[WhiteClock "0:00:10"]
[BlackClock "0:00:08"]

1. d4 {[%clk 0:03:00]}  Nf6 {[%clk 0:02:59]} 2. Nf3 {[%clk 0:03:00]}  e6 {[%clk 0:02:59]} 3. c4 {[%clk 0:03:00]}  d5 {[%clk 0:02:59]} 4. g3 {[%clk 0:03:01]}  dxc4 {[%clk 0:02:55]} 5. Bg2 {[%clk 0:03:01]}  c6 {[%clk 0:02:53]} 6. O-O {[%clk 0:03:00]}  b5 {[%clk 0:02:52]} 7. a4 {[%clk 0:02:56]}  Bb7 {[%clk 0:02:52]} 8. Ne5 {[%clk 0:02:53]}  a6 {[%clk 0:02:49]} 9. b3 {[%clk 0:02:51]}  cxb3 {[%clk 0:02:49]} 10. Qxb3 {[%clk 0:02:52]}  Qxd4 {[%clk 0:02:49]} 11. Bb2 {[%clk 0:02:52]}  Qb4 {[%clk 0:02:50]} 12. Qc2 {[%clk 0:02:53]}  Qc5 {[%clk 0:02:50]} 13. Qd3 {[%clk 0:02:44]}  Qd6 {[%clk 0:02:45]} 14. Qf3 {[%clk 0:02:43]}  Be7 {[%clk 0:02:38]} 15. Ra3 {[%clk 0:02:19]}  O-O {[%clk 0:02:21]} 16. Rd3 {[%clk 0:02:17]}  Qc7 {[%clk 0:02:19]} 17. Rc1 {[%clk 0:02:14]}  Ra7 {[%clk 0:02:07]} 18. e4 {[%clk 0:00:54]}  c5 {[%clk 0:02:03]} 19. Qe2 {[%clk 0:00:55]}  c4 {[%clk 0:02:00]} 20. Rdd1 {[%clk 0:00:54]}  Nc6 {[%clk 0:01:55]} 21. Ng4 {[%clk 0:00:53]}  Nxg4 {[%clk 0:01:44]} 22. Qxg4 {[%clk 0:00:54]}  Ne5 {[%clk 0:01:40]} 23. Qf4 {[%clk 0:00:52]}  Bf6 {[%clk 0:01:34]} 24. Nc3 {[%clk 0:00:50]}  b4 {[%clk 0:01:31]} 25. Na2 {[%clk 0:00:50]}  Nf3+ {[%clk 0:01:22]} 26. Bxf3 {[%clk 0:00:43]}  Qxf4 {[%clk 0:01:18]} 27. gxf4 {[%clk 0:00:44]}  Bxb2 {[%clk 0:01:18]} 28. Rxc4 {[%clk 0:00:45]}  a5 {[%clk 0:01:11]} 29. Rc7 {[%clk 0:00:44]}  Bxe4 {[%clk 0:00:51]} 30. Rxa7 {[%clk 0:00:40]}  Bxf3 {[%clk 0:00:51]} 31. Rd2 {[%clk 0:00:39]}  Bf6 {[%clk 0:00:40]} 32. Rxa5 {[%clk 0:00:34]}  b3 {[%clk 0:00:40]} 33. Rb5 {[%clk 0:00:31]}  bxa2 {[%clk 0:00:31]} 34. Rxa2 {[%clk 0:00:32]}  Rc8 {[%clk 0:00:28]} 35. Rb1 {[%clk 0:00:30]}  h5 {[%clk 0:00:27]} 36. a5 {[%clk 0:00:29]}  Bd4 {[%clk 0:00:25]} 37. a6 {[%clk 0:00:26]}  Ba7 {[%clk 0:00:20]} 38. h3 {[%clk 0:00:25]}  h4 {[%clk 0:00:20]} 39. Ra3 {[%clk 0:00:25]}  Bd5 {[%clk 0:00:20]} 40. Kf1 {[%clk 0:00:19]}  Rc2 {[%clk 0:00:19]} 41. f3 {[%clk 0:00:20]}  Rf2+ {[%clk 0:00:18]} 42. Ke1 {[%clk 0:00:20]}  Rh2 {[%clk 0:00:18]} 43. Rb7 {[%clk 0:00:18]}  Bc5 {[%clk 0:00:08]} 44. Rb8+ {[%clk 0:00:16]}  Kh7 {[%clk 0:00:08]} 45. Ra5 {[%clk 0:00:16]}  Bf2+ {[%clk 0:00:07]} 46. Kd1 {[%clk 0:00:15]}  Be3 {[%clk 0:00:08]} 47. Ra3 {[%clk 0:00:10]}  Bxf3+ {[%clk 0:00:08]} 48. Ke1 {[%clk 0:00:10]}  Rh1# {[%clk 0:00:08]} 0-1


[Site "https://www.chess.com"]